[Event "Titled Tuesday Blitz January 10 Early 2023"]
[White "Golubev, Mikhail"]
[Black "Stanojevic, Ilija"]
[WhiteFideId "14100983"]
[BlackFideId "959995"]
[WhiteElo "2461"]
[BlackElo "2142"]
[Result "1-0"]
[Round "06"]
[TimeControl "180+2"]
[Date "2023.01.10"]
[WhiteClock "0:00:33"]
[BlackClock "0:00:07"]

1. e4 {[%clk 0:03:00]}  d6 {[%clk 0:02:58]} 2. d4 {[%clk 0:02:59]}  Nf6 {[%clk 0:02:58]} 3. Nc3 {[%clk 0:03:00]}  Nbd7 {[%clk 0:02:59]} 4. f4 {[%clk 0:02:58]}  e5 {[%clk 0:02:59]} 5. Nf3 {[%clk 0:02:58]}  exd4 {[%clk 0:02:59]} 6. Qxd4 {[%clk 0:02:56]}  c6 {[%clk 0:02:59]} 7. Be3 {[%clk 0:02:40]}  d5 {[%clk 0:02:25]} 8. exd5 {[%clk 0:02:32]}  Bc5 {[%clk 0:02:24]} 9. Qd2 {[%clk 0:02:25]}  O-O {[%clk 0:02:22]} 10. O-O-O {[%clk 0:02:19]}  Bxe3 {[%clk 0:02:18]} 11. Qxe3 {[%clk 0:02:18]}  Re8 {[%clk 0:02:19]} 12. Qd4 {[%clk 0:02:15]}  cxd5 {[%clk 0:02:12]} 13. Nxd5 {[%clk 0:02:13]}  Qa5 {[%clk 0:02:12]} 14. Bc4 {[%clk 0:02:06]}  Nxd5 {[%clk 0:01:25]} 15. Qxd5 {[%clk 0:01:51]}  Qxd5 {[%clk 0:01:24]} 16. Bxd5 {[%clk 0:01:50]}  Nf6 {[%clk 0:01:16]} 17. Bb3 {[%clk 0:01:50]}  Bg4 {[%clk 0:01:12]} 18. Rd3 {[%clk 0:01:37]}  Bxf3 {[%clk 0:01:11]} 19. Rxf3 {[%clk 0:01:37]}  Re2 {[%clk 0:01:09]} 20. g3 {[%clk 0:01:34]}  Rd8 {[%clk 0:01:07]} 21. Bc4 {[%clk 0:01:25]}  Rg2 {[%clk 0:01:02]} 22. Bf1 {[%clk 0:01:05]}  Rgd2 {[%clk 0:00:54]} 23. Bd3 {[%clk 0:00:57]}  Rg2 {[%clk 0:00:53]} 24. h3 {[%clk 0:00:52]}  Nd5 {[%clk 0:00:50]} 25. Bf1 {[%clk 0:00:38]}  Nb4 {[%clk 0:00:07]} 26. Bxg2 {[%clk 0:00:36]}  Nxa2+ {[%clk 0:00:07]} 27. Kb1 {[%clk 0:00:36]}  Nb4 {[%clk 0:00:07]} 28. Rb3 {[%clk 0:00:33]} 1-0


[Site "https://www.chess.com"]

[Event "Titled Tuesday Blitz January 10 Early 2023"]
[White "Kaminski, Victor"]
[Black "Mendez Fortes, Eduardo Jesus"]
[WhiteFideId "1131630"]
[BlackFideId "3502376"]
[WhiteElo "2247"]
[BlackElo "2250"]
[Result "0-1"]
[Round "06"]
[TimeControl "180+2"]
[Date "2023.01.10"]
[WhiteClock "0:01:04"]
[BlackClock "0:02:11"]

1. d4 {[%clk 0:03:00]}  Nf6 {[%clk 0:02:58]} 2. c4 {[%clk 0:02:59]}  e6 {[%clk 0:02:58]} 3. g3 {[%clk 0:02:59]}  d5 {[%clk 0:02:56]} 4. Bg2 {[%clk 0:02:59]}  dxc4 {[%clk 0:02:56]} 5. Nf3 {[%clk 0:02:56]}  a6 {[%clk 0:02:56]} 6. O-O {[%clk 0:02:56]}  Nc6 {[%clk 0:02:55]} 7. e3 {[%clk 0:02:54]}  Rb8 {[%clk 0:02:55]} 8. Nfd2 {[%clk 0:02:50]}  e5 {[%clk 0:02:54]} 9. Bxc6+ {[%clk 0:02:50]}  bxc6 {[%clk 0:02:55]} 10. dxe5 {[%clk 0:02:50]}  Ng4 {[%clk 0:02:55]} 11. Nxc4 {[%clk 0:02:49]}  Be6 {[%clk 0:02:56]} 12. Nbd2 {[%clk 0:02:35]}  Bb4 {[%clk 0:02:55]} 13. Qc2 {[%clk 0:02:32]}  h5 {[%clk 0:02:52]} 14. b3 {[%clk 0:02:26]}  h4 {[%clk 0:02:51]} 15. Nf3 {[%clk 0:02:21]}  hxg3 {[%clk 0:02:39]} 16. fxg3 {[%clk 0:02:19]}  Bc5 {[%clk 0:02:39]} 17. Qe2 {[%clk 0:02:04]}  Qd5 {[%clk 0:02:31]} 18. Ba3 {[%clk 0:01:49]}  Ba7 {[%clk 0:02:25]} 19. Rad1 {[%clk 0:01:45]}  Qe4 {[%clk 0:02:23]} 20. Ng5 {[%clk 0:01:36]}  Bxc4 {[%clk 0:02:19]} 21. bxc4 {[%clk 0:01:15]}  Bxe3+ {[%clk 0:02:16]} 22. Rf2 {[%clk 0:01:13]}  Bxf2+ {[%clk 0:02:13]} 23. Qxf2 {[%clk 0:01:04]}  Nxf2 {[%clk 0:02:11]} 0-1


[Site "https://www.chess.com"]

[Event "Titled Tuesday Blitz January 10 Early 2023"]
[White "Jiganchine, Roman"]
[Black "Iskusnyh, Sergei"]
[WhiteFideId "2603667"]
[BlackFideId "4120027"]
[WhiteElo "2205"]
[BlackElo "2440"]
[Result "0-1"]
[Round "06"]
[TimeControl "180+2"]
[Date "2023.01.10"]
[WhiteClock "0:00:12"]
[BlackClock "0:00:15"]

1. e4 {[%clk 0:03:00]}  e6 {[%clk 0:02:59]} 2. d4 {[%clk 0:02:59]}  d5 {[%clk 0:02:59]} 3. Nd2 {[%clk 0:02:59]}  c5 {[%clk 0:02:59]} 4. c3 {[%clk 0:02:58]}  cxd4 {[%clk 0:02:52]} 5. cxd4 {[%clk 0:02:58]}  dxe4 {[%clk 0:02:51]} 6. Nxe4 {[%clk 0:02:58]}  Nf6 {[%clk 0:02:48]} 7. Nc3 {[%clk 0:02:57]}  Be7 {[%clk 0:02:44]} 8. Nf3 {[%clk 0:02:57]}  O-O {[%clk 0:02:42]} 9. Bd3 {[%clk 0:02:56]}  b6 {[%clk 0:02:42]} 10. O-O {[%clk 0:02:55]}  Ba6 {[%clk 0:02:41]} 11. Bxa6 {[%clk 0:02:47]}  Nxa6 {[%clk 0:02:41]} 12. Ne5 {[%clk 0:02:48]}  Qc7 {[%clk 0:02:35]} 13. Bf4 {[%clk 0:02:45]}  Qb7 {[%clk 0:02:34]} 14. Rc1 {[%clk 0:02:32]}  Nb4 {[%clk 0:02:33]} 15. Nb5 {[%clk 0:02:13]}  Rac8 {[%clk 0:02:22]} 16. a3 {[%clk 0:02:02]}  Nbd5 {[%clk 0:02:14]} 17. Bg3 {[%clk 0:01:58]}  a6 {[%clk 0:02:12]} 18. Nc3 {[%clk 0:01:52]}  Nxc3 {[%clk 0:02:11]} 19. Rxc3 {[%clk 0:01:43]}  Nd5 {[%clk 0:01:44]} 20. Rxc8 {[%clk 0:01:27]}  Rxc8 {[%clk 0:01:45]} 21. Qf3 {[%clk 0:01:25]}  Bf6 {[%clk 0:01:43]} 22. Ng4 {[%clk 0:01:10]}  Bxd4 {[%clk 0:01:30]} 23. Rd1 {[%clk 0:01:10]}  Bxb2 {[%clk 0:01:27]} 24. h4 {[%clk 0:01:08]}  Qc6 {[%clk 0:00:58]} 25. h5 {[%clk 0:01:03]}  h6 {[%clk 0:00:30]} 26. Be5 {[%clk 0:00:33]}  Bxe5 {[%clk 0:00:23]} 27. Nxe5 {[%clk 0:00:34]}  Qc7 {[%clk 0:00:23]} 28. Ng4 {[%clk 0:00:27]}  Qf4 {[%clk 0:00:20]} 29. Qh3 {[%clk 0:00:20]}  Rc3 {[%clk 0:00:19]} 30. Ne3 {[%clk 0:00:18]}  Nxe3 {[%clk 0:00:17]} 31. Rd8+ {[%clk 0:00:17]}  Kh7 {[%clk 0:00:17]} 32. fxe3 {[%clk 0:00:16]}  Qxe3+ {[%clk 0:00:17]} 33. Qxe3 {[%clk 0:00:16]}  Rxe3 {[%clk 0:00:18]} 34. Rb8 {[%clk 0:00:16]}  b5 {[%clk 0:00:16]} 35. a4 {[%clk 0:00:16]}  bxa4 {[%clk 0:00:15]} 36. Ra8 {[%clk 0:00:16]}  a3 {[%clk 0:00:15]} 37. Rxa6 {[%clk 0:00:15]}  g6 {[%clk 0:00:15]} 38. hxg6+ {[%clk 0:00:13]}  Kxg6 {[%clk 0:00:15]} 39. Kf2 {[%clk 0:00:14]}  Rb3 {[%clk 0:00:15]} 40. Ra7 {[%clk 0:00:13]}  f6 {[%clk 0:00:15]} 41. Ra8 {[%clk 0:00:13]}  e5 {[%clk 0:00:15]} 42. Ra4 {[%clk 0:00:13]}  f5 {[%clk 0:00:15]} 43. Ra6+ {[%clk 0:00:12]}  Kg5 {[%clk 0:00:15]} 0-1


[Site "https://www.chess.com"]

[Event "Titled Tuesday Blitz January 10 Early 2023"]
[White "Fisher_TheGalactic"]
[Black "Rychkov, Roman"]
[BlackFideId "30985595"]
[WhiteElo "2530"]
[BlackElo "2023"]
[Result "1-0"]
[Round "06"]
[TimeControl "180+2"]
[Date "2023.01.10"]
[WhiteClock "0:01:48"]
[BlackClock "0:01:17"]

1. Nf3 {[%clk 0:02:59]}  Nf6 {[%clk 0:03:00]} 2. g3 {[%clk 0:02:59]}  b5 {[%clk 0:03:00]} 3. Bg2 {[%clk 0:02:59]}  Bb7 {[%clk 0:02:59]} 4. O-O {[%clk 0:03:00]}  c5 {[%clk 0:02:59]} 5. d3 {[%clk 0:02:59]}  d5 {[%clk 0:02:56]} 6. Nbd2 {[%clk 0:02:59]}  e6 {[%clk 0:02:56]} 7. Ne5 {[%clk 0:02:56]}  Qc7 {[%clk 0:02:53]} 8. Ndf3 {[%clk 0:02:56]}  Bd6 {[%clk 0:02:51]} 9. Bf4 {[%clk 0:02:33]}  Nh5 {[%clk 0:02:33]} 10. e3 {[%clk 0:02:23]}  Nxf4 {[%clk 0:02:28]} 11. exf4 {[%clk 0:02:23]}  d4 {[%clk 0:02:25]} 12. Re1 {[%clk 0:02:16]}  Nd7 {[%clk 0:02:24]} 13. Nxf7 {[%clk 0:02:04]}  Kxf7 {[%clk 0:02:16]} 14. Ng5+ {[%clk 0:02:04]}  Kg8 {[%clk 0:02:04]} 15. Nxe6 {[%clk 0:02:01]}  Qb6 {[%clk 0:02:01]} 16. Qg4 {[%clk 0:01:51]}  Bf8 {[%clk 0:01:25]} 17. Nxf8 {[%clk 0:01:48]}  Nxf8 {[%clk 0:01:17]} 18. Re7 {[%clk 0:01:48]} 1-0


[Site "https://www.chess.com"]

[Event "Titled Tuesday Blitz January 10 Early 2023"]
[White "Goltseva, Ekaterina"]
[Black "Makhmudov, Shukhrat"]
[WhiteFideId "24173770"]
[BlackFideId "14200775"]
[WhiteElo "2283"]
[BlackElo "2115"]
[Result "1/2-1/2"]
[Round "06"]
[TimeControl "180+2"]
[Date "2023.01.10"]
[WhiteClock "0:00:02"]
[BlackClock "0:00:27"]

1. d4 {[%clk 0:02:34]}  Nf6 {[%clk 0:02:59]} 2. c4 {[%clk 0:02:30]}  e6 {[%clk 0:02:59]} 3. g3 {[%clk 0:02:28]}  d5 {[%clk 0:02:59]} 4. Bg2 {[%clk 0:02:28]}  Be7 {[%clk 0:02:59]} 5. Nf3 {[%clk 0:02:29]}  O-O {[%clk 0:02:58]} 6. Qc2 {[%clk 0:02:29]}  c6 {[%clk 0:02:59]} 7. O-O {[%clk 0:02:29]}  b6 {[%clk 0:02:58]} 8. Nbd2 {[%clk 0:02:28]}  Ba6 {[%clk 0:02:58]} 9. b3 {[%clk 0:02:25]}  Nbd7 {[%clk 0:02:53]} 10. Rd1 {[%clk 0:02:19]}  Rc8 {[%clk 0:02:52]} 11. e4 {[%clk 0:02:18]}  Bb7 {[%clk 0:02:47]} 12. e5 {[%clk 0:02:15]}  Ne8 {[%clk 0:02:46]} 13. Nf1 {[%clk 0:02:07]}  c5 {[%clk 0:02:46]} 14. cxd5 {[%clk 0:01:55]}  cxd4 {[%clk 0:02:40]} 15. Qe2 {[%clk 0:01:43]}  Bxd5 {[%clk 0:02:37]} 16. Bb2 {[%clk 0:01:43]}  Bc5 {[%clk 0:02:24]} 17. Nxd4 {[%clk 0:01:35]}  Bxg2 {[%clk 0:02:22]} 18. Kxg2 {[%clk 0:01:35]}  Qe7 {[%clk 0:02:13]} 19. Qe4 {[%clk 0:01:25]}  Bxd4 {[%clk 0:02:03]} 20. Qxd4 {[%clk 0:01:13]}  Nc5 {[%clk 0:02:02]} 21. Ne3 {[%clk 0:01:10]}  Nc7 {[%clk 0:02:00]} 22. Nc4 {[%clk 0:01:04]}  Nd5 {[%clk 0:01:55]} 23. Nd6 {[%clk 0:01:04]}  Rcd8 {[%clk 0:01:54]} 24. Ba3 {[%clk 0:00:59]}  Qc7 {[%clk 0:01:36]} 25. Rac1 {[%clk 0:00:56]}  Qc6 {[%clk 0:01:36]} 26. Kg1 {[%clk 0:00:46]}  Qa8 {[%clk 0:01:35]} 27. Bxc5 {[%clk 0:00:43]}  bxc5 {[%clk 0:01:35]} 28. Rxc5 {[%clk 0:00:44]}  f6 {[%clk 0:01:33]} 29. Re1 {[%clk 0:00:33]}  fxe5 {[%clk 0:01:31]} 30. Qxe5 {[%clk 0:00:34]}  Rf6 {[%clk 0:01:22]} 31. Rb5 {[%clk 0:00:27]}  Qc6 {[%clk 0:01:18]} 32. Nb7 {[%clk 0:00:21]}  Rd7 {[%clk 0:01:07]} 33. a4 {[%clk 0:00:19]}  Rxb7 {[%clk 0:01:06]} 34. Rxb7 {[%clk 0:00:15]}  Qxb7 {[%clk 0:01:06]} 35. Qd6 {[%clk 0:00:16]}  h6 {[%clk 0:01:03]} 36. Rxe6 {[%clk 0:00:16]}  Rxe6 {[%clk 0:01:00]} 37. Qxe6+ {[%clk 0:00:17]}  Kh8 {[%clk 0:00:56]} 38. Qe8+ {[%clk 0:00:16]}  Kh7 {[%clk 0:00:56]} 39. Qe4+ {[%clk 0:00:17]}  Kg8 {[%clk 0:00:57]} 40. Qe8+ {[%clk 0:00:17]}  Kh7 {[%clk 0:00:54]} 41. Qe4+ {[%clk 0:00:17]}  g6 {[%clk 0:00:53]} 42. h4 {[%clk 0:00:18]}  h5 {[%clk 0:00:53]} 43. b4 {[%clk 0:00:16]}  Qd7 {[%clk 0:00:52]} 44. b5 {[%clk 0:00:14]}  Nf6 {[%clk 0:00:52]} 45. Qf4 {[%clk 0:00:07]}  Ng4 {[%clk 0:00:51]} 46. Qf3 {[%clk 0:00:04]}  Ne5 {[%clk 0:00:45]} 47. Qe4 {[%clk 0:00:03]}  Qd1+ {[%clk 0:00:39]} 48. Kg2 {[%clk 0:00:04]}  Qa1 {[%clk 0:00:35]} 49. a5 {[%clk 0:00:04]}  Ng4 {[%clk 0:00:30]} 50. Qe7+ {[%clk 0:00:03]}  Kh8 {[%clk 0:00:27]} 51. Qe8+ {[%clk 0:00:03]}  Kh7 {[%clk 0:00:27]} 52. Qe7+ {[%clk 0:00:03]}  Kh8 {[%clk 0:00:27]} 53. Qe8+ {[%clk 0:00:03]}  Kh7 {[%clk 0:00:27]} 54. Qe7+ {[%clk 0:00:02]} 1/2-1/2


[Site "https://www.chess.com"]

[Event "Titled Tuesday Blitz January 10 Early 2023"]
[White "Cepo, Toni"]
[Black "Ibadov, Dashgyn"]
[WhiteFideId "4675916"]
[BlackFideId "24107514"]
[WhiteElo "2145"]
[BlackElo "2391"]
[Result "0-1"]
[Round "06"]
[TimeControl "180+2"]
[Date "2023.01.10"]
[WhiteClock "0:01:30"]
[BlackClock "0:01:52"]

1. e4 {[%clk 0:02:56]}  e6 {[%clk 0:03:00]} 2. d4 {[%clk 0:02:56]}  d5 {[%clk 0:03:00]} 3. Nd2 {[%clk 0:02:56]}  Nc6 {[%clk 0:02:57]} 4. Ngf3 {[%clk 0:02:53]}  Nf6 {[%clk 0:02:57]} 5. e5 {[%clk 0:02:51]}  Nd7 {[%clk 0:02:57]} 6. c3 {[%clk 0:02:50]}  f6 {[%clk 0:02:57]} 7. exf6 {[%clk 0:02:49]}  Qxf6 {[%clk 0:02:58]} 8. Bd3 {[%clk 0:02:50]}  Bd6 {[%clk 0:02:59]} 9. O-O {[%clk 0:02:49]}  O-O {[%clk 0:02:58]} 10. Re1 {[%clk 0:02:49]}  e5 {[%clk 0:02:57]} 11. dxe5 {[%clk 0:02:44]}  Ndxe5 {[%clk 0:02:58]} 12. Be2 {[%clk 0:02:34]}  Bg4 {[%clk 0:02:58]} 13. Qb3 {[%clk 0:02:31]}  Rae8 {[%clk 0:02:40]} 14. Qxd5+ {[%clk 0:02:10]}  Kh8 {[%clk 0:02:39]} 15. Rf1 {[%clk 0:02:09]}  Nxf3+ {[%clk 0:02:10]} 16. Bxf3 {[%clk 0:02:07]}  Bxh2+ {[%clk 0:01:54]} 17. Kxh2 {[%clk 0:02:02]}  Re5 {[%clk 0:01:54]} 18. Qc4 {[%clk 0:01:32]}  Qh4+ {[%clk 0:01:51]} 19. Kg1 {[%clk 0:01:30]}  Rh5 {[%clk 0:01:52]} 0-1


[Site "https://www.chess.com"]

[Event "Titled Tuesday Blitz January 10 Early 2023"]
[White "Ruge, Edison"]
[Black "Kuznetsova, Olga"]
[WhiteFideId "4401000"]
[BlackFideId "4191323"]
[WhiteElo "2201"]
[BlackElo "2142"]
[Result "0-1"]
[Round "06"]
[TimeControl "180+2"]
[Date "2023.01.10"]
[WhiteClock "0:00:09"]
[BlackClock "0:00:50"]

1. e4 {[%clk 0:03:00]}  e5 {[%clk 0:02:54]} 2. Nf3 {[%clk 0:03:00]}  Nf6 {[%clk 0:02:54]} 3. d3 {[%clk 0:02:57]}  Nc6 {[%clk 0:02:53]} 4. Nc3 {[%clk 0:02:56]}  d5 {[%clk 0:02:53]} 5. Be2 {[%clk 0:02:54]}  dxe4 {[%clk 0:02:51]} 6. dxe4 {[%clk 0:02:53]}  Qxd1+ {[%clk 0:02:51]} 7. Bxd1 {[%clk 0:02:53]}  Bb4 {[%clk 0:02:50]} 8. Nd2 {[%clk 0:02:48]}  Be6 {[%clk 0:02:46]} 9. O-O {[%clk 0:02:47]}  O-O-O {[%clk 0:02:46]} 10. Be2 {[%clk 0:02:38]}  Nd4 {[%clk 0:02:44]} 11. Bd3 {[%clk 0:02:36]}  a6 {[%clk 0:02:39]} 12. f3 {[%clk 0:02:29]}  h6 {[%clk 0:02:35]} 13. Ndb1 {[%clk 0:02:16]}  g5 {[%clk 0:02:25]} 14. Be3 {[%clk 0:02:16]}  Rhg8 {[%clk 0:02:23]} 15. Bxd4 {[%clk 0:02:14]}  Rxd4 {[%clk 0:02:22]} 16. Ne2 {[%clk 0:02:13]}  Rdd8 {[%clk 0:02:21]} 17. g4 {[%clk 0:02:08]}  h5 {[%clk 0:02:19]} 18. h3 {[%clk 0:02:07]}  h4 {[%clk 0:02:10]} 19. Kg2 {[%clk 0:02:06]}  Rd7 {[%clk 0:02:04]} 20. a3 {[%clk 0:02:05]}  Ba5 {[%clk 0:02:03]} 21. Nbc3 {[%clk 0:02:02]}  Rgd8 {[%clk 0:02:02]} 22. Rad1 {[%clk 0:01:59]}  Nh7 {[%clk 0:01:58]} 23. b4 {[%clk 0:01:50]}  Bb6 {[%clk 0:01:57]} 24. Nc1 {[%clk 0:01:48]}  Nf8 {[%clk 0:01:55]} 25. Be2 {[%clk 0:01:46]}  Ng6 {[%clk 0:01:51]} 26. Rxd7 {[%clk 0:01:39]}  Rxd7 {[%clk 0:01:51]} 27. Nd3 {[%clk 0:01:31]}  Bc4 {[%clk 0:01:48]} 28. Rd1 {[%clk 0:01:26]}  Bd4 {[%clk 0:01:45]} 29. Na4 {[%clk 0:01:09]}  Bxd3 {[%clk 0:01:33]} 30. Bxd3 {[%clk 0:01:04]}  Nf4+ {[%clk 0:01:33]} 31. Kh2 {[%clk 0:01:02]}  Bf2 {[%clk 0:01:29]} 32. Nc5 {[%clk 0:00:57]}  Rd6 {[%clk 0:01:26]} 33. Kh1 {[%clk 0:00:21]}  Bg3 {[%clk 0:01:06]} 34. b5 {[%clk 0:00:17]}  axb5 {[%clk 0:01:05]} 35. Rb1 {[%clk 0:00:14]}  b6 {[%clk 0:00:56]} 36. Nb3 {[%clk 0:00:12]}  Nxd3 {[%clk 0:00:53]} 37. cxd3 {[%clk 0:00:11]}  Rxd3 {[%clk 0:00:54]} 38. Kg2 {[%clk 0:00:11]}  c5 {[%clk 0:00:52]} 39. Nxc5 {[%clk 0:00:07]}  bxc5 {[%clk 0:00:51]} 40. Rxb5 {[%clk 0:00:07]}  Rc3 {[%clk 0:00:49]} 41. Rb6 {[%clk 0:00:07]}  Kc7 {[%clk 0:00:47]} 42. Rf6 {[%clk 0:00:07]}  Rxa3 {[%clk 0:00:47]} 43. Rxf7+ {[%clk 0:00:07]}  Kc6 {[%clk 0:00:48]} 44. Rf5 {[%clk 0:00:07]}  Bf4 {[%clk 0:00:48]} 45. Rf6+ {[%clk 0:00:07]}  Kb5 {[%clk 0:00:48]} 46. Kf1 {[%clk 0:00:07]}  Ra2 {[%clk 0:00:48]} 47. Ke1 {[%clk 0:00:08]}  c4 {[%clk 0:00:49]} 48. Kd1 {[%clk 0:00:08]}  c3 {[%clk 0:00:49]} 49. Rf8 {[%clk 0:00:09]}  c2+ {[%clk 0:00:50]} 50. Ke2 {[%clk 0:00:08]}  c1=Q+ {[%clk 0:00:50]} 51. Kd3 {[%clk 0:00:09]}  Qd2# {[%clk 0:00:50]} 0-1


[Site "https://www.chess.com"]

[Event "Titled Tuesday Blitz January 10 Early 2023"]
[White "Manukian, Artak"]
[Black "Nogerbek, Kazybek"]
[WhiteFideId "13301373"]
[BlackFideId "13710427"]
[WhiteElo "2196"]
[BlackElo "2474"]
[Result "1/2-1/2"]
[Round "06"]
[TimeControl "180+2"]
[Date "2023.01.10"]
[WhiteClock "0:00:13"]
[BlackClock "0:00:15"]

1. e4 {[%clk 0:02:24]}  g6 {[%clk 0:02:55]} 2. d4 {[%clk 0:02:24]}  Nf6 {[%clk 0:02:55]} 3. f3 {[%clk 0:02:24]}  d5 {[%clk 0:02:53]} 4. e5 {[%clk 0:02:24]}  Ng8 {[%clk 0:02:53]} 5. c4 {[%clk 0:02:23]}  c6 {[%clk 0:02:47]} 6. Nc3 {[%clk 0:02:22]}  Bg7 {[%clk 0:02:46]} 7. Qb3 {[%clk 0:02:15]}  Nh6 {[%clk 0:02:25]} 8. cxd5 {[%clk 0:02:06]}  Nf5 {[%clk 0:02:22]} 9. Nge2 {[%clk 0:02:01]}  O-O {[%clk 0:02:18]} 10. g4 {[%clk 0:01:51]}  Nh4 {[%clk 0:02:16]} 11. Kf2 {[%clk 0:01:51]}  h6 {[%clk 0:01:55]} 12. Kg3 {[%clk 0:01:43]}  g5 {[%clk 0:01:50]} 13. f4 {[%clk 0:01:39]}  cxd5 {[%clk 0:01:46]} 14. fxg5 {[%clk 0:01:35]}  hxg5 {[%clk 0:01:46]} 15. Bxg5 {[%clk 0:01:30]}  Ng6 {[%clk 0:01:46]} 16. Bg2 {[%clk 0:01:26]}  Nc6 {[%clk 0:01:33]} 17. Rad1 {[%clk 0:01:17]}  Be6 {[%clk 0:01:23]} 18. h4 {[%clk 0:01:13]}  f6 {[%clk 0:01:20]} 19. Bxd5 {[%clk 0:01:00]}  Bxd5 {[%clk 0:01:14]} 20. Nxd5 {[%clk 0:01:01]}  Kh8 {[%clk 0:00:49]} 21. Ndf4 {[%clk 0:00:50]}  Qe8 {[%clk 0:00:40]} 22. Nxg6+ {[%clk 0:00:41]}  Qxg6 {[%clk 0:00:41]} 23. Nf4 {[%clk 0:00:42]}  Qe8 {[%clk 0:00:25]} 24. Ne6 {[%clk 0:00:30]}  fxe5 {[%clk 0:00:24]} 25. Nxf8 {[%clk 0:00:25]}  Qxf8 {[%clk 0:00:23]} 26. Rhf1 {[%clk 0:00:19]}  Qd8 {[%clk 0:00:24]} 27. Qf7 {[%clk 0:00:15]}  exd4 {[%clk 0:00:18]} 28. Qh5+ {[%clk 0:00:13]}  Kg8 {[%clk 0:00:18]} 29. Qf7+ {[%clk 0:00:13]}  Kh8 {[%clk 0:00:18]} 30. Qh5+ {[%clk 0:00:13]}  Kg8 {[%clk 0:00:16]} 31. Qf7+ {[%clk 0:00:13]}  Kh7 {[%clk 0:00:15]} 32. Qh5+ {[%clk 0:00:13]}  Kg8 {[%clk 0:00:15]} 1/2-1/2


[Site "https://www.chess.com"]

[Event "Titled Tuesday Blitz January 10 Early 2023"]
[White "Abdilkhair, Abilmansur"]
[Black "Kukhmazov, Arsen"]
[WhiteFideId "13716417"]
[BlackFideId "24108260"]
[WhiteElo "2268"]
[BlackElo "2512"]
[Result "0-1"]
[Round "06"]
[TimeControl "180+2"]
[Date "2023.01.10"]
[WhiteClock "0:00:16"]
[BlackClock "0:00:47"]

1. d4 {[%clk 0:03:00]}  d5 {[%clk 0:02:43]} 2. c4 {[%clk 0:03:00]}  c6 {[%clk 0:02:42]} 3. Nf3 {[%clk 0:02:59]}  Nf6 {[%clk 0:02:43]} 4. Nc3 {[%clk 0:02:57]}  dxc4 {[%clk 0:02:42]} 5. a4 {[%clk 0:02:57]}  Bf5 {[%clk 0:02:41]} 6. e3 {[%clk 0:02:55]}  e6 {[%clk 0:02:41]} 7. Bxc4 {[%clk 0:02:53]}  Bb4 {[%clk 0:02:41]} 8. O-O {[%clk 0:02:51]}  Nbd7 {[%clk 0:02:42]} 9. Bd2 {[%clk 0:02:49]}  O-O {[%clk 0:02:40]} 10. Ne2 {[%clk 0:02:47]}  Bxd2 {[%clk 0:02:30]} 11. Nxd2 {[%clk 0:02:48]}  a5 {[%clk 0:02:29]} 12. Ng3 {[%clk 0:02:46]}  Bg6 {[%clk 0:02:29]} 13. Qe2 {[%clk 0:02:43]}  e5 {[%clk 0:02:28]} 14. Nb3 {[%clk 0:02:32]}  exd4 {[%clk 0:02:27]} 15. Nxd4 {[%clk 0:02:33]}  Ne5 {[%clk 0:02:27]} 16. Rfd1 {[%clk 0:02:30]}  Nxc4 {[%clk 0:02:27]} 17. Qxc4 {[%clk 0:02:31]}  Qb6 {[%clk 0:02:27]} 18. Qb3 {[%clk 0:02:26]}  Qxb3 {[%clk 0:02:27]} 19. Nxb3 {[%clk 0:02:27]}  Bc2 {[%clk 0:02:28]} 20. Nc5 {[%clk 0:02:25]}  Bxd1 {[%clk 0:02:28]} 21. Rxd1 {[%clk 0:02:26]}  Rfd8 {[%clk 0:02:29]} 22. Rc1 {[%clk 0:02:21]}  Rab8 {[%clk 0:02:29]} 23. Nf5 {[%clk 0:02:07]}  Kf8 {[%clk 0:02:20]} 24. Nd4 {[%clk 0:02:06]}  Nd7 {[%clk 0:02:15]} 25. Ncb3 {[%clk 0:02:03]}  Ra8 {[%clk 0:02:16]} 26. Kf1 {[%clk 0:02:00]}  Nb6 {[%clk 0:02:16]} 27. Nc5 {[%clk 0:02:00]}  Ra7 {[%clk 0:02:11]} 28. Ke2 {[%clk 0:01:54]}  Nd7 {[%clk 0:02:07]} 29. Ne4 {[%clk 0:01:52]}  g6 {[%clk 0:02:03]} 30. Ng5 {[%clk 0:01:47]}  h6 {[%clk 0:02:02]} 31. Ne4 {[%clk 0:01:45]}  Ke7 {[%clk 0:02:03]} 32. f4 {[%clk 0:01:41]}  Nb6 {[%clk 0:02:03]} 33. Nc5 {[%clk 0:01:40]}  Nd7 {[%clk 0:01:59]} 34. Ne4 {[%clk 0:01:40]}  f5 {[%clk 0:02:00]} 35. Nd2 {[%clk 0:01:36]}  Nb6 {[%clk 0:02:00]} 36. N2f3 {[%clk 0:01:34]}  Nxa4 {[%clk 0:01:56]} 37. Ne5 {[%clk 0:01:33]}  Rd6 {[%clk 0:01:56]} 38. Nc4 {[%clk 0:01:29]}  Rd5 {[%clk 0:01:50]} 39. b3 {[%clk 0:01:28]}  Nc5 {[%clk 0:01:47]} 40. Nb6 {[%clk 0:01:28]}  Rxd4 {[%clk 0:01:22]} 41. exd4 {[%clk 0:01:18]}  Nxb3 {[%clk 0:01:23]} 42. Rb1 {[%clk 0:01:06]}  Nxd4+ {[%clk 0:01:21]} 43. Kd3 {[%clk 0:01:06]}  Kd8 {[%clk 0:01:06]} 44. Kxd4 {[%clk 0:01:05]}  a4 {[%clk 0:01:07]} 45. Kc5 {[%clk 0:01:00]}  a3 {[%clk 0:01:07]} 46. Rd1+ {[%clk 0:00:52]}  Ke8 {[%clk 0:01:07]} 47. Nc4 {[%clk 0:00:44]}  a2 {[%clk 0:01:05]} 48. Ra1 {[%clk 0:00:44]}  Ke7 {[%clk 0:00:52]} 49. g3 {[%clk 0:00:38]}  g5 {[%clk 0:00:51]} 50. fxg5 {[%clk 0:00:34]}  hxg5 {[%clk 0:00:52]} 51. Kb6 {[%clk 0:00:32]}  Ra4 {[%clk 0:00:52]} 52. Ne3 {[%clk 0:00:32]}  f4 {[%clk 0:00:50]} 53. gxf4 {[%clk 0:00:25]}  gxf4 {[%clk 0:00:50]} 54. Ng4 {[%clk 0:00:23]}  Rb4+ {[%clk 0:00:47]} 55. Ka5 {[%clk 0:00:20]}  Rb2 {[%clk 0:00:47]} 56. h4 {[%clk 0:00:18]}  b5 {[%clk 0:00:47]} 57. Kb6 {[%clk 0:00:16]}  b4 {[%clk 0:00:47]} 58. Kxc6 {[%clk 0:00:16]}  b3 {[%clk 0:00:47]} 59. Ne5 {[%clk 0:00:16]}  Rb1 {[%clk 0:00:47]} 0-1


[Site "https://www.chess.com"]